[Event "1st Goa GM Open 2018"]
[Site "Taleigao"]
[Date "2018.10.17"]
[Round "7"]
[White "Ter-Sahakyan, Samvel"]
[Black "Babujian, Levon"]
[Result "0-1"]
[ECO "A48"]
[WhiteElo "2547"]
[BlackElo "2456"]
[Annotator "ChessBase"]
[PlyCount "96"]
[EventDate "2018.10.13"]
[EventType "swiss"]
[EventCountry "IND"]
[SourceTitle "playchess.com"]
[Source "ChessBase"]
[SourceQuality "1"]
[TimeControl "5400+30"]

1. Nf3 {[%emt 0:00:00]} Nf6 {[%emt 0:00:00]} 2. d4 {[%emt 0:00:06]} g6 {[%emt 0:00:15]} 3. e3 {[%emt 0:02:40]} Bg7 {[%emt 0:00:23]} 4. Be2 {[%emt 0:00:04]} O-O {[%emt 0:00:48]} 5. O-O {[%emt 0:00:05]} d6 {[%emt 0:01:09]} 6. a4 {[%emt 0:00:05]} Nc6 {[%emt 0:05:04]} 7. a5 {[%emt 0:06:13]} e5 {[%emt 0:00:47]} 8. a6 {[%emt 0:00:40]} e4 {[%emt 0:04:38]} 9. Nfd2 {[%emt 0:05:18]} bxa6 {[%emt 0:00:59]} 10. Bxa6 {[%emt 0:01:03]} Bg4 {[%emt 0:02:13]} 11. Be2 {[%emt 0:02:06]} h5 {[%emt 0:00:50]} 12. Nxe4 {[%emt 0:09:30]} Nxe4 {[%emt 0:01:28]} 13. f3 {[%emt 0:00:11]} f5 {[%emt 0:11:24]} 14. fxe4 {[%emt 0:10:28]} fxe4 {[%emt 0:01:04]} 15. Nc3 {[%emt 0:00:05]} Rf7 16. Rf2 Rxf2 {[%emt 0:11:18]} 17. Qe1 Rf1+ 18. Qxf1 {[%emt 0:01:06]} Bxe2 {[%emt 0:00:55]} 19. Qxe2 {[%emt 0:00:18]} d5 {[%emt 0:08:22]} 20. Ra6 {[%emt 0:24:05]} Ne7 {[%emt 0:01:10]} 21. Bd2 {[%emt 0:00:14]} c6 {[%emt 0:02:16]} 22. Na4 {[%emt 0:04:19]} Qe8 {[%emt 0:00:56]} 23. c4 {[%emt 0:01:20]} Kh7 {[%emt 0:02:03]} 24. Nc5 {[%emt 0:00:54]} Nf5 {[%emt 0:05:35]} 25. b4 {[%emt 0:03:15]} Bh6 {[%emt 0:06:32]} 26. b5 {[%emt 0:05:15]} dxc4 {[%emt 0:00:53]} 27. Rxc6 {[%emt 0:01:09]} Rb8 {[%emt 0:08:18]} 28. Rc7+ {[%emt 0:07:27]} Kh8 {[%emt 0:00:06]} 29. Nd7 {[%emt 0:01:00]} Qf7 {[%emt 0:03:18]} 30. Nxb8 {[%emt 0:07:38]} Qxc7 {[%emt 0:00:05]} 31. Nc6 {[%emt 0:00:04]} c3 {[%emt 0:02:15]} 32. Bxc3 {[%emt 0:00:37]} Bxe3+ {[%emt 0:00:12]} 33. Kh1 {[%emt 0:00:02]} Kh7 {[%emt 0:02:47]} 34. Be1 {[%emt 0:04:49]} Qf4 {[%emt 0:04:27]} 35. d5 {[%emt 0:03:08]} h4 {[%emt 0:01:50]} 36. g4 {[%emt 0:00:50]} hxg3 {[%emt 0:01:03]} 37. hxg3 {[%emt 0:00:51]} Qf3+ {[%emt 0:00:31]} 38. Qxf3 {[%emt 0:00:04]} exf3 {[%emt 0:00:04]} 39. g4 {[%emt 0:00:05]} Nd6 {[%emt 0:00:25]} 40. Bg3 {[%emt 0:02:05]} Ne4 {[%emt 0:00:09]} 41. Kh2 {[%emt 0:00:03]} f2 {[%emt 0:00:16]} 42. Bxf2 {[%emt 0:00:04]} Bxf2 {[%emt 0:00:05]} 43. Kg2 {[%emt 0:00:25]} Bc5 {[%emt 0:00:32]} 44. Kf3 {[%emt 0:00:06]} Nd6 {[%emt 0:00:17]} 45. Kf4 {[%emt 0:00:02]} Nxb5 {[%emt 0:00:09]} 46. Ke5 {[%emt 0:00:03]} Kg7 {[%emt 0:02:05]} 47. Nd8 {[%emt 0:01:15]} Bd6+ {[%emt 0:00:17]} 48. Ke6 {[%emt 0:00:12]} a5 {[%emt 0:00:16]} 0-1

[Event "1st Goa GM Open 2018"]
[Site "Taleigao"]
[Date "2018.10.17"]
[Round "7"]
[White "Deepan Chakkravarthy J."]
[Black "Akash G"]
[Result "1-0"]
[ECO "B67"]
[WhiteElo "2540"]
[BlackElo "2424"]
[Annotator "ChessBase"]
[PlyCount "83"]
[EventDate "2018.10.13"]
[EventType "swiss"]
[EventCountry "IND"]
[SourceTitle "playchess.com"]
[Source "ChessBase"]
[SourceQuality "1"]
[TimeControl "5400+30"]

1. e4 {[%emt 0:00:20]} c5 {[%emt 0:00:00]} 2. Nf3 {[%emt 0:00:06]} d6 {[%emt 0:00:00]} 3. d4 {[%emt 0:06:30]} cxd4 {[%emt 0:00:00]} 4. Nxd4 {[%emt 0:01:13]} Nf6 {[%emt 0:00:04]} 5. Nc3 {[%emt 0:00:02]} Nc6 {[%emt 0:00:18]} 6. Bg5 {[%emt 0:00:04]} e6 {[%emt 0:00:37]} 7. Qd2 {[%emt 0:00:06]} a6 {[%emt 0:00:07]} 8. O-O-O {[%emt 0:00:07]} Bd7 {[%emt 0:00:16]} 9. f4 {[%emt 0:05:58]} Qc7 {[%emt 0:00:08]} 10. Bxf6 {[%emt 0:00:43]} gxf6 {[%emt 0:00:06]} 11. Kb1 {[%emt 0:01:23]} O-O-O {[%emt 0:01:09]} 12. Nb3 {[%emt 0:04:14]} Kb8 {[%emt 0:09:38]} 13. Be2 {[%emt 0:01:45]} Na5 {[%emt 0:04:13]} 14. Bh5 {[%emt 0:01:15]} Be8 {[%emt 0:09:13]} 15. Nxa5 {[%emt 0:07:31]} Qxa5 {[%emt 0:00:21]} 16. Qe2 {[%emt 0:00:04]} f5 {[%emt 0:05:51]} 17. exf5 {[%emt 0:21:58]} Qxf5 {[%emt 0:00:48]} 18. g4 {[%emt 0:00:03]} Qxf4 {[%emt 0:13:24]} 19. Rhf1 {[%emt 0:00:11]} Qb4 {[%emt 0:00:39]} 20. a3 {[%emt 0:02:11]} Qb6 {[%emt 0:02:48]} 21. Bxf7 {[%emt 0:00:54]} Bg7 {[%emt 0:01:51]} 22. Ka2 {[%emt 0:14:44]} Bd7 {[%emt 0:06:35]} 23. Qc4 {[%emt 0:14:17]} d5 {[%emt 0:08:01]} 24. Qb3 {[%emt 0:04:48]} Qd6 {[%emt 0:01:51]} 25. h4 {[%emt 0:04:49]} Rc8 {[%emt 0:04:29]} 26. Nxd5 {[%emt 0:03:40]} exd5 {[%emt 0:00:11]} 27. Bxd5 {[%emt 0:00:06]} Rc6 {[%emt 0:12:01]} 28. Bxc6 {[%emt 0:01:50]} Qxc6 {[%emt 0:00:02]} 29. Rxd7 {[%emt 0:00:41]} Qxd7 {[%emt 0:01:49]} 30. Rf7 {[%emt 0:00:14]} Qc6 {[%emt 0:00:37]} 31. Rxg7 {[%emt 0:00:05]} Ka7 {[%emt 0:00:29]} 32. g5 {[%emt 0:01:49]} a5 {[%emt 0:00:35]} 33. c4 {[%emt 0:00:39]} h6 {[%emt 0:00:44]} 34. Qc3 {[%emt 0:00:18]} a4 {[%emt 0:00:35]} 35. Qa5+ {[%emt 0:00:58]} Kb8 {[%emt 0:00:05]} 36. Qe5+ {[%emt 0:00:07]} Ka7 {[%emt 0:00:07]} 37. Qd4+ {[%emt 0:01:05]} Ka8 {[%emt 0:00:15]} 38. Rc7 {[%emt 0:01:12]} Qxc7 {[%emt 0:00:40]} 39. Qxh8+ {[%emt 0:00:05]} Ka7 40. Qd4+ {[%emt 0:00:04]} Ka6 {[%emt 0:00:37]} 41. gxh6 {[%emt 0:00:18]} b5 {[%emt 0:00:05]} 42. cxb5+ {[%emt 0:00:26]} 1-0

[Event "1st Goa GM Open 2018"]
[Site "Taleigao"]
[Date "2018.10.17"]
[Round "7"]
[White "Neverov, Valeriy"]
[Black "Sivuk, Vitaly"]
[Result "1/2-1/2"]
[ECO "D37"]
[WhiteElo "2488"]
[BlackElo "2545"]
[Annotator "ChessBase"]
[PlyCount "62"]
[EventDate "2018.10.13"]
[EventType "swiss"]
[EventCountry "IND"]
[SourceTitle "playchess.com"]
[Source "ChessBase"]
[SourceQuality "1"]
[TimeControl "5400+30"]

1. d4 Nf6 2. c4 e6 3. Nf3 d5 4. Nc3 dxc4 5. e3 a6 6. Bxc4 {[%emt 0:07:21]} b5 {[%emt 0:00:45]} 7. Bd3 {[%emt 0:01:08]} Bb7 {[%emt 0:00:10]} 8. Qc2 Nbd7 9. Ne4 Rc8 10. Nxf6+ {[%emt 0:11:49]} Nxf6 {[%emt 0:07:27]} 11. a4 Bb4+ 12. Bd2 Bxd2+ 13. Qxd2 O-O 14. axb5 axb5 15. Bxb5 {[%emt 0:15:54]} Ne4 {[%emt 0:43:00]} 16. Qe2 {[%emt 0:07:13]} Ng5 {[%emt 0:06:38]} 17. Nxg5 {[%emt 0:02:30]} Qxg5 {[%emt 0:00:11]} 18. f3 {[%emt 0:01:03]} c5 {[%emt 0:00:25]} 19. O-O {[%emt 0:11:34]} cxd4 {[%emt 0:01:27]} 20. exd4 {[%emt 0:00:08]} Rfd8 {[%emt 0:00:14]} 21. Rad1 Bd5 22. Qd2 {[%emt 0:14:59]} Qxd2 {[%emt 0:08:41]} 23. Rxd2 {[%emt 0:00:08]} Rb8 {[%emt 0:00:04]} 24. Be2 {[%emt 0:03:50]} Rb4 {[%emt 0:01:45]} 25. Rc1 {[%emt 0:06:55]} g6 {[%emt 0:00:25]} 26. Kf2 {[%emt 0:01:20]} Rdb8 {[%emt 0:00:15]} 27. Rb1 {[%emt 0:01:51]} Ba2 {[%emt 0:00:12]} 28. Ra1 {[%emt 0:00:05]} Bd5 {[%emt 0:00:06]} 29. Rb1 {[%emt 0:00:11]} Ba2 {[%emt 0:00:04]} 30. Ra1 {[%emt 0:00:03]} Bd5 {[%emt 0:00:06]} 31. Rb1 {[%emt 0:00:03]} Ba2 {[%emt 0:00:05]} 1/2-1/2

[Event "1st Goa GM Open 2018"]
[Site "Taleigao"]
[Date "2018.10.17"]
[Round "7"]
[White "Rahman, Ziaur"]
[Black "Gajwa Ankit"]
[Result "0-1"]
[ECO "D12"]
[WhiteElo "2473"]
[BlackElo "2224"]
[Annotator "RC"]
[PlyCount "118"]
[EventDate "2018.10.13"]
[EventType "swiss"]
[EventCountry "IND"]
[SourceTitle "playchess.com"]
[Source "ChessBase"]
[SourceQuality "1"]
[TimeControl "5400+30"]

1. d4 {[%emt 0:00:00]} d5 {[%emt 0:00:00]} 2. Nf3 {[%emt 0:00:00]} Nf6 {[%emt 0:00:06]} 3. c4 {[%emt 0:00:07]} c6 {[%emt 0:00:10]} 4. e3 {[%emt 0:00:23]} Bf5 {[%emt 0:00:29]} 5. Nc3 {[%emt 0:00:16]} a6 {[%emt 0:01:04]} 6. Be2 {[%emt 0:00:54]} e6 {[%emt 0:01:39]} 7. Nh4 {[%emt 0:01:43]} Be4 {[%emt 0:01:36]} 8. O-O {[%emt 0:02:11]} Be7 {[%emt 0:05:35]} 9. g3 {[%emt 0:01:45]} O-O {[%emt 0:08:00]} 10. Qb3 {[%emt 0:05:04]} Ra7 {[%emt 0:07:02]} 11. Nxe4 {[%emt 0:02:32]} Nxe4 {[%emt 0:10:03]} 12. Nf3 {[%emt 0:04:23]} Nd7 {[%emt 0:04:11]} 13. Qc2 {[%emt 0:00:44]} Ra8 {[%emt 0:06:47]} 14. b3 {[%emt 0:01:13]} a5 {[%emt 0:02:58]} 15. Rb1 {[%emt 0:03:27]} Qc7 {[%emt 0:03:31]} 16. Bb2 {[%emt 0:03:16]} a4 {[%emt 0:05:06]} 17. Bd3 {[%emt 0:05:34]} Nef6 {[%emt 0:09:50]} 18. c5 {[%emt 0:05:10]} axb3 {[%emt 0:02:14]} 19. axb3 {[%emt 0:00:05]} h6 {[%emt 0:02:14]} 20. b4 {[%emt 0:00:45]} b6 {[%emt 0:04:45]} 21. Ra1 {[%emt 0:01:16]} bxc5 {[%emt 0:02:58]} 22. bxc5 {[%emt 0:01:48]} e5 {[%emt 0:02:18]} 23. dxe5 {[%emt 0:02:47]} Ng4 {[%emt 0:00:18]} 24. Qc3 {[%emt 0:09:27]} Nxc5 {[%emt 0:05:17]} 25. h3 {[%emt 0:01:27]} Rab8 {[%emt 0:02:31]} 26. Bb1 {[%emt 0:04:35]} Ne4 {[%emt 0:05:50]} 27. Qc2 {[%emt 0:03:55]} Rxb2 {[%emt 0:03:43]} 28. Qxb2 {[%emt 0:00:06]} Rb8 {[%emt 0:00:12]} 29. Qd4 {[%emt 0:03:04]} Bc5 {[%emt 0:01:49]} 30. Qa4 {[%emt 0:00:08]} Nxe3 {[%emt 0:02:04]} 31. Rc1 {[%emt 0:02:48]} Rb4 {[%emt 0:00:37]} 32. Qa8+ {[%emt 0:09:51]} Rb8 {[%emt 0:00:05]} 33. Qa6 {[%emt 0:02:14]} Bb6 {[%emt 0:00:45]} 34. Bxe4 {[%emt 0:02:40]} dxe4 {[%emt 0:00:06]} 35. Nd2 {[%emt 0:01:39]} Qxe5 {[%emt 0:00:33]} 36. Qe2 {[%emt 0:05:09]} Nc2 {[%emt 0:00:53]} 37. Rxc2 {[%emt 0:02:04]} Qxa1+ {[%emt 0:00:03]} 38. Kg2 {[%emt 0:00:07]} e3 {[%emt 0:00:53]} 39. fxe3 {[%emt 0:00:20]} Qe5 {[%emt 0:00:25]} 40. e4 {[%emt 0:00:56]} Bc7 {[%emt 0:00:43]} 41. Qf2 {[%emt 0:01:32]} Rb2 {[%emt 0:00:25]} 42. Rxb2 {[%emt 0:00:26]} Qxb2 {[%emt 0:00:02]} 43. Nf3 {[%emt 0:00:57]} Qb1 {[%emt 0:01:04]} 44. Qe2 {[%emt 0:00:24]} c5 {[%emt 0:00:28]} 45. e5 {[%emt 0:00:51]} Qb3 {[%emt 0:00:11]} 46. Qe4 {[%emt 0:01:12]} Qa2+ {[%emt 0:00:46]} 47. Kf1 {[%emt 0:00:59]} Qe6 {[%emt 0:00:10]} 48. g4 {[%emt 0:00:16]} c4 {[%emt 0:00:55]} 49. Ke2 {[%emt 0:00:32]} Qa6 {[%emt 0:00:14]} 50. g5 {[%emt 0:05:13]} Qa2+ {[%emt 0:00:21]} 51. Kd1 {[%emt 0:00:23]} Qb3+ {[%emt 0:00:28]} 52. Ke2 {[%emt 0:01:05]} c3 {[%emt 0:00:57]} 53. Nd4 {[%emt 0:01:09]} Qc4+ {[%emt 0:00:23]} 54. Qd3 {[%emt 0:01:23]} Qd5 {[%emt 0:00:28]} 55. Nf3 {[%emt 0:00:57]} Qa2+ {[%emt 0:00:07]} 56. Kd1 {[%emt 0:00:14]} Qa1+ {[%emt 0:01:00]} 57. Kc2 {[%emt 0:00:59]} Qb2+ {[%emt 0:00:06]} 58. Kd1 {[%emt 0:00:02]} Qb3+ {[%emt 0:00:59]} 59. Kc1 Bb6 0-1

[Event "1st Goa GM Open 2018"]
[Site "Taleigao"]
[Date "2018.10.17"]
[Round "7"]
[White "Laxman, R.R."]
[Black "Sahoo, Utkal Ranjan"]
[Result "1/2-1/2"]
[ECO "E10"]
[WhiteElo "2443"]
[BlackElo "2332"]
[Annotator "NA"]
[PlyCount "75"]
[EventDate "2018.10.13"]
[EventType "swiss"]
[EventCountry "IND"]
[SourceTitle "playchess.com"]
[Source "ChessBase"]
[SourceQuality "1"]
[TimeControl "5400+30"]

1. d4 {[%emt 0:00:00]} Nf6 {[%emt 0:00:34]} 2. Nf3 {[%emt 0:00:00]} e6 {[%emt 0:00:09]} 3. c4 {[%emt 0:00:00]} c5 {[%emt 0:00:20]} 4. d5 {[%emt 0:02:37]} b5 {[%emt 0:00:25]} 5. Bg5 {[%emt 0:01:16]} exd5 {[%emt 0:01:24]} 6. cxd5 {[%emt 0:00:09]} d6 {[%emt 0:00:09] [#]} 7. e4 $1 {[%emt 0:00:19]} a6 {[%emt 0:00:45]} 8. a4 {[%emt 0:00:26]} Be7 {[%emt 0:00:36]} 9. Bxf6 {[%emt 0:28:04] E10: Blumenfeld Gambit} (9. Bd3 $16) 9... Bxf6 {[%emt 0:00:13]} 10. Qc2 {[%emt 0:00:24]} (10. axb5 Bxb2 11. Ra2 Bf6 12. bxa6 Qb6 13. Nbd2 O-O 14. Bc4 Bxa6 15. O-O Nd7 16. Qc2 Bxc4 17. Nxc4 {½-½ (54) Illescas Cordoba,M (2618)-Tikkanen,H (2559) Tromsoe 2014}) 10... b4 {[%emt 0:06:49] LiveBook: 5 Games} 11. Nbd2 {[%emt 0:00:50]} O-O {[%emt 0:05:20]} 12. h3 $146 {[%emt 0:02:27]} ({Predecessor:} 12. Nc4 a5 13. Rd1 Ba6 14. Ne3 Bxf1 15. Kxf1 Nd7 16. g3 Nb6 {½-½ (49) Farago,I (2501)-Danner,G (2426) Gmunden 2007}) 12... Nd7 {[%emt 0:06:59]} 13. a5 {[%emt 0:01:14]} Re8 {[%emt 0:02:36]} 14. Nc4 {[%emt 0:03:21] [#]} ({White should try} 14. Bd3 $11) 14... b3 $1 {[%emt 0:05:04]} 15. Qd3 {[%emt 0:00:27]} Qe7 {[%emt 0:01:47]} 16. Nfd2 {[%emt 0:00:58]} (16. Be2 $11) 16... Rb8 {[%emt 0:02:22]} 17. Be2 {[%emt 0:00:14]} (17. Qg3 $15) 17... Ne5 {[%emt 0:01:02]} 18. Nxe5 {[%emt 0:00:16]} Bxe5 {[%emt 0:01:18]} 19. O-O {[%emt 0:02:23]} f5 $17 {[%emt 0:18:14]} 20. exf5 {[%emt 0:04:20]} Bxb2 {[%emt 0:04:22]} 21. Rae1 {[%emt 0:00:02]} Qf6 {[%emt 0:00:56]} 22. Ne4 {[%emt 0:01:49]} Qf8 {[%emt 0:01:51]} 23. Bh5 {[%emt 0:01:39]} Re5 {[%emt 0:01:12]} 24. f4 {[%emt 0:00:40]} Rxe4 {[%emt 0:05:23]} 25. Rxe4 {[%emt 0:01:04]} Bxf5 {[%emt 0:00:10]} 26. Bf3 {[%emt 0:00:26]} Bd4+ {[%emt 0:01:15]} 27. Kh2 {[%emt 0:00:07]} b2 {[%emt 0:00:27]} 28. g4 {[%emt 0:00:15]} Bxe4 {[%emt 0:00:53]} 29. Bxe4 {[%emt 0:00:02]} h6 {[%emt 0:05:19]} 30. Bf5 {[%emt 0:00:39]} Qf6 {[%emt 0:01:47]} 31. Kg3 {[%emt 0:00:11]} Kh8 {[%emt 0:06:17]} 32. Qxa6 {[%emt 0:00:52]} g6 {[%emt 0:01:09]} 33. Bb1 {[%emt 0:01:34]} Rb3+ {[%emt 0:08:07]} 34. Rf3 {[%emt 0:02:39]} g5 {[%emt 0:08:50]} 35. Qc8+ {[%emt 0:00:07]} Kg7 {[%emt 0:00:05]} 36. Qd7+ {[%emt 0:00:15]} Kf8 {[%emt 0:00:07]} 37. Qc8+ {[%emt 0:01:57]} Kg7 {[%emt 0:00:12]} 38. Qd7+ {[%emt 0:00:05]} 1/2-1/2

[Event "1st Goa GM Open 2018"]
[Site "Taleigao"]
[Date "2018.10.17"]
[Round "7"]
[White "Neelotpal, Das"]
[Black "Raahul V S"]
[Result "0-1"]
[ECO "C55"]
[WhiteElo "2436"]
[BlackElo "2294"]
[Annotator "NA"]
[PlyCount "100"]
[EventDate "2018.10.13"]
[EventType "swiss"]
[EventCountry "IND"]
[SourceTitle "playchess.com"]
[Source "ChessBase"]
[SourceQuality "1"]
[TimeControl "5400+30"]

1. e4 {[%emt 0:00:00]} e5 {[%emt 0:00:00]} 2. Nf3 {[%emt 0:00:00]} Nc6 {[%emt 0:00:00]} 3. Bc4 {[%emt 0:00:00]} Nf6 {[%emt 0:00:00]} 4. d3 {[%emt 0:00:00]} h6 {[%emt 0:00:00]} 5. O-O {[%emt 0:00:31]} d6 {[%emt 0:00:10]} 6. c3 {[%emt 0:00:06]} g6 {[%emt 0:00:04]} 7. a4 {[%emt 0:00:30] C55: Two Knights: 4 d3, 4 d4 exd4 5 e5 and Max Lange Attack} (7. Re1 Bg7 8. Nbd2 O-O 9. Bb3 Re8 10. Nf1 Be6 11. h3 d5 12. Ng3 Qd7 13. Ba4 Nh7 14. d4 exd4 15. Nxd4 Rad8 16. Be3 dxe4 17. Nxc6 bxc6 18. Nxe4 {½-½ (33) Anand,V (2782)-Ponkratov,P (2613) Riadh 2017}) 7... Bg7 {[%emt 0:00:14]} 8. a5 {[%emt 0:00:02]} a6 {[%emt 0:00:22]} 9. Nbd2 {[%emt 0:01:10]} O-O {[%emt 0:00:08]} 10. Re1 {[%emt 0:00:02]} Kh7 {[%emt 0:00:43]} 11. Nf1 {[%emt 0:04:34] LiveBook: 3 Partien} Nh5 {[%emt 0:02:25]} 12. h3 $146 {[%emt 0:02:35]} ({Predecessor:} 12. d4 exd4 13. Nxd4 Nf6 14. Nxc6 bxc6 {½-½ (48) Cubas,J (2384)-Ramon Pita,V (2232) Santos 2004}) 12... Nf4 {[%emt 0:01:34]} 13. Bxf4 {[%emt 0:01:56]} exf4 {[%emt 0:00:55]} 14. d4 {[%emt 0:00:04]} Ne7 {[%emt 0:00:19]} 15. Qb3 {[%emt 0:03:22]} c6 {[%emt 0:01:08]} 16. N1d2 {[%emt 0:00:12]} d5 {[%emt 0:05:49]} 17. Bd3 {[%emt 0:07:47]} b5 {[%emt 0:06:42]} (17... Qc7 $16 {was called for.}) 18. axb6 {[%emt 0:04:23]} Rb8 {[%emt 0:00:05]} 19. exd5 {[%emt 0:01:35]} ({White should play} 19. Qc2 $18) 19... cxd5 {[%emt 0:00:12]} 20. Qa3 {[%emt 0:13:24]} Bf6 {[%emt 0:00:56]} 21. b7 {[%emt 0:06:34]} ({Don't play} 21. Bxa6 Ra8 $14) 21... Rxb7 {[%emt 0:06:23]} 22. b4 {[%emt 0:04:59]} Rc7 {[%emt 0:00:43]} 23. Qb2 {[%emt 0:01:25]} Ra7 {[%emt 0:03:00]} 24. Nb3 {[%emt 0:00:41]} Qb6 {[%emt 0:00:46]} 25. Qd2 {[%emt 0:01:36]} Bf5 {[%emt 0:02:39]} (25... Qd6 {ist eine bessere Verteidigung.} 26. b5 Qb6 27. Qxf4 Kg7) 26. Bxf5 {[%emt 0:03:33]} Nxf5 {[%emt 0:00:13]} 27. Qxf4 {[%emt 0:00:23]} Rc8 {[%emt 0:00:08]} 28. Nc5 {[%emt 0:01:30]} Qc7 $18 {[%emt 0:04:38]} 29. Qd2 {[%emt 0:08:35]} a5 {[%emt 0:01:49]} 30. g4 {[%emt 0:09:05]} Nd6 {[%emt 0:01:35]} 31. Qf4 {[%emt 0:07:28]} Ne4 {[%emt 0:01:59]} 32. Rxe4 {[%emt 0:01:01]} dxe4 {[%emt 0:00:09]} 33. Qxf6 {[%emt 0:01:05]} exf3 {[%emt 0:00:08]} 34. Rxa5 {[%emt 0:07:09]} Qe7 {[%emt 0:04:52]} 35. Qxf3 {[%emt 0:01:24]} Rca8 {[%emt 0:03:16]} 36. Nb3 {[%emt 0:01:28]} Rxa5 {[%emt 0:03:06]} 37. Nxa5 {[%emt 0:00:10]} Ra6 38. Nc6 {[%emt 0:02:43]} Qe8 {[%emt 0:01:19]} 39. b5 {[%emt 0:01:30]} Ra3 {[%emt 0:01:05]} 40. Ne5 {[%emt 0:02:33]} Kg7 {[%emt 0:01:03]} 41. b6 {[%emt 0:00:30]} Rb3 {[%emt 0:00:16]} 42. b7 {[%emt 0:01:39]} f6 {[%emt 0:00:49]} 43. Nd3 {[%emt 0:01:30]} Qe7 {[%emt 0:00:10]} 44. Nb4 {[%emt 0:00:39]} Rb1+ {[%emt 0:00:21]} 45. Kg2 {[%emt 0:00:24]} Qe1 {[%emt 0:00:04]} 46. Kg3 {[%emt 0:00:27]} Qe8 {[%emt 0:02:02]} 47. Kh2 {[%emt 0:00:35]} g5 {[%emt 0:00:24]} 48. Nd5 {[%emt 0:00:35]} Qc6 {[%emt 0:00:16]} 49. Qd3 {[%emt 0:00:29]} Qd6+ {[%emt 0:00:19]} 50. f4 {[%emt 0:00:19]} Rb2+ {[%emt 0:00:03]} 0-1

[Event "1st Goa GM Open 2018"]
[Site "Taleigao"]
[Date "2018.10.17"]
[Round "7"]
[White "Das, Sayantan"]
[Black "Navalgund, Niranjan"]
[Result "1-0"]
[ECO "C95"]
[WhiteElo "2425"]
[BlackElo "2245"]
[Annotator "NA"]
[PlyCount "71"]
[EventDate "2018.10.13"]
[EventType "swiss"]
[EventCountry "IND"]
[SourceTitle "playchess.com"]
[Source "ChessBase"]
[SourceQuality "1"]
[TimeControl "5400+30"]

1. e4 {[%emt 0:00:00]} e5 {[%emt 0:00:00]} 2. Nf3 {[%emt 0:00:00]} Nc6 {[%emt 0:00:00]} 3. Bb5 {[%emt 0:00:13]} a6 {[%emt 0:00:00]} 4. Ba4 {[%emt 0:00:07]} Nf6 {[%emt 0:00:00]} 5. O-O {[%emt 0:00:42]} Be7 {[%emt 0:00:00]} 6. Re1 {[%emt 0:00:07]} b5 {[%emt 0:00:00]} 7. Bb3 {[%emt 0:00:06]} d6 {[%emt 0:00:00]} 8. c3 {[%emt 0:00:10]} O-O {[%emt 0:00:00]} 9. h3 {[%emt 0:00:14]} Nb8 {[%emt 0:00:00]} 10. d4 {[%emt 0:00:42]} Nbd7 {[%emt 0:00:02]} 11. a4 {[%emt 0:00:29]} Bb7 {[%emt 0:00:27]} 12. Bc2 {[%emt 0:00:08] LiveBook: 20 Games} c5 {[%emt 0:00:36] C95: Closed Ruy Lopez: Breyer Variation with 10 d4} (12... Re8 13. Nbd2 c5 14. d5 c4 15. b3 cxb3 16. Nxb3 Qc7 17. Be3 Nb6 18. Nbd2 Nfd7 19. axb5 {½-½ (19) Areshchenko,A (2678)-Efimenko,Z (2651) Rivne 2016}) 13. d5 {[%emt 0:01:48]} c4 {[%emt 0:01:39]} 14. Be3 {[%emt 0:03:26]} Qb8 {[%emt 0:05:11]} 15. Na3 {[%emt 0:07:15]} Bc8 {[%emt 0:00:28]} 16. Nd2 $146 {[%emt 0:06:57]} ({Predecessor:} 16. Rb1 Nc5 17. Bxc5 dxc5 18. b3 Bd7 19. bxc4 b4 20. cxb4 cxb4 {1-0 (53) Even,R (2123)-Matzig,R (1904) GER email 2011}) 16... Nc5 {[%emt 0:02:02]} 17. Qe2 {[%emt 0:07:05]} Rd8 {[%emt 0:20:00]} 18. Rf1 {[%emt 0:08:13]} Nfd7 {[%emt 0:07:25]} (18... Bd7 $11 {keeps the balance.}) 19. Kh1 {[%emt 0:03:12]} (19. b4 $16 cxb3 20. Nxb3) 19... Nf8 {[%emt 0:03:26]} (19... Nf6 $14) 20. Qh5 {[%emt 0:13:02]} (20. b3 $16) 20... Bd7 $11 {[%emt 0:06:21]} 21. g3 {[%emt 0:16:11]} Qc8 {[%emt 0:31:39]} 22. Kh2 {[%emt 0:00:31]} g6 {[%emt 0:05:39]} 23. Qh6 {[%emt 0:02:23]} f5 {[%emt 0:04:00]} 24. f4 {[%emt 0:04:45]} exf4 {[%emt 0:06:29]} 25. Bd4 {[%emt 0:08:02]} fxg3+ {[%emt 0:00:03]} 26. Kg1 {[%emt 0:00:08]} Nfe6 {[%emt 0:01:46]} 27. dxe6 {[%emt 0:00:06]} Nxe6 {[%emt 0:00:02]} 28. exf5 {[%emt 0:03:36]} Nxd4 {[%emt 0:03:54]} 29. fxg6 {[%emt 0:02:43]} Ne2+ {[%emt 0:00:16]} 30. Kh1 {[%emt 0:01:11]} Bc6+ {[%emt 0:01:51]} 31. Be4 {[%emt 0:04:16]} g2+ {[%emt 0:00:55]} 32. Kxg2 {[%emt 0:00:34]} Bxe4+ {[%emt 0:00:40]} 33. Nxe4 {[%emt 0:00:07]} hxg6 {[%emt 0:00:19]} 34. Qxg6+ {[%emt 0:00:09]} Kh8 {[%emt 0:00:02]} 35. Qh5+ {[%emt 0:00:15]} Kg8 {[%emt 0:00:09]} 36. Rf7 {[%emt 0:00:37]} 1-0

[Event "1st Goa GM Open 2018"]
[Site "Taleigao"]
[Date "2018.10.17"]
[Round "7"]
[White "Fominyh, Alexander"]
[Black "Matta, Vinay Kumar"]
[Result "0-1"]
[ECO "A04"]
[WhiteElo "2405"]
[BlackElo "2129"]
[Annotator "NA"]
[PlyCount "39"]
[EventDate "2018.10.13"]
[EventType "swiss"]
[EventCountry "IND"]
[SourceTitle "playchess.com"]
[Source "ChessBase"]
[SourceQuality "1"]
[TimeControl "5400+30"]

{[%evp 8,39,61,32,32767,32767,32767,32767,32767,32767,32767,32767,32767,30,23,50,51,33,28,39,66,60,32767,32767,32767,32767,32767,32767,32767,32767,32767,32767,216,199]} 1. Nf3 {[%emt 0:00:00]} c5 {[%emt 0:03:02]} 2. c4 {[%emt 0:00:00]} Nc6 {[%emt 0:00:06]} 3. Nc3 {[%emt 0:00:01]} g6 {[%emt 0:00:15]} 4. e3 {[%emt 0:00:14]} Bg7 {[%emt 0:00:36] LiveBook: 673 Games} (4... Nf6 $11) 5. d4 {[%emt 0:00:11]} Nb8 {[%emt 0:03:35] A35: Symmetrical English: 2 Nc3 Nc6 3 Nf3} (5... d6 6. d5 Ne5 7. Nxe5 Bxe5 8. e4 Nf6 9. Bd3 h6 10. O-O g5 11. f4 gxf4 12. Bxf4 Ng4 13. Qf3 h5 14. Be2 f6 15. h3 Bd4+ {1-0 (40) Pantsulaia,L (2612)-Rapport,R (2707) Riadh 2017}) 6. d5 {[%emt 0:00:00]} d6 {[%emt 0:00:11]} 7. e4 {[%emt 0:00:27]} Nf6 {[%emt 0:00:30]} 8. h3 {[%emt 0:00:30]} O-O {[%emt 0:00:18]} 9. Be2 {[%emt 0:02:00]} e6 {[%emt 0:00:48]} 10. dxe6 $146 {[%emt 0:07:47]} ({Predecessor:} 10. O-O exd5 11. cxd5 a6 12. a4 Re8 13. Qc2 b6 14. Bf4 Qe7 15. Nd2 Nbd7 16. f3 {1-0 (48) Di Tomaso,F-Antonsig,S Trieste 1997}) 10... fxe6 {[%emt 0:01:01]} 11. e5 {[%emt 0:01:00]} dxe5 {[%emt 0:00:49]} 12. Qxd8 {[%emt 0:00:35]} Rxd8 {[%emt 0:00:06]} 13. Nxe5 {[%emt 0:00:13]} Re8 {[%emt 0:03:25]} 14. Bg5 {[%emt 0:08:18]} Nfd7 {[%emt 0:00:30]} 15. Nd3 {[%emt 0:00:30]} Bxc3+ {[%emt 0:01:42]} 16. bxc3 {[%emt 0:00:30]} Nc6 {[%emt 0:00:13]} 17. h4 {[%emt 0:06:36]} b6 {[%emt 0:03:49]} 18. h5 {[%emt 0:00:32]} Bb7 {[%emt 0:02:44]} 19. O-O-O {[%emt 0:02:22]} Rac8 {[%emt 0:04:33]} (19... Nd8 $16 {keeps fighting.}) 20. Bf3 $18 {[%emt 0:21:13]} 0-1